bitfinex/quotes_SOLUSD_20260105
["timestamp","ask_amount","ask_price","bid_price","bid_amount"]
[1767609096366,0.14125229,135.48,135.44,0.66279126]
[1767609098571,8.07860528,135.5,135.46,14.12279126]
[1767609098766,8.07860528,135.5,135.47,0.66279126]
[1767609099681,11.40910075,135.5,135.47,0.66279126]
[1767609100598,8.07860528,135.5,135.47,0.66279126]
[1767609103085,0.14125229,135.49,135.46,16.79049547]
[1767609103291,0.69853148,135.5,135.47,0.66279126]
[1767609104190,4.02902695,135.51,135.47,0.66279126]
[1767609104397,7.3800738,135.5,135.47,0.66279126]
[1767609105095,7.52132609,135.5,135.47,0.66279126]
[1767609107482,10.85182156,135.5,135.47,0.66279126]
[1767609107994,3.47726483,135.48,135.44,14.12279126]
[1767609108201,3.33049547,135.47,135.44,14.12279126]
[1767609109097,10.71260484,135.47,135.44,14.12279126]
[1767609109970,10.65260485,135.47,135.44,14.12279126]
[1767609110170,10.59260486,135.47,135.44,14.12279126]
[1767609110377,11.27381544,135.47,135.44,14.12279126]
[1767609110778,8.06331995,135.47,135.44,14.12279126]
[1767609110978,11.39381542,135.47,135.44,14.12279126]
[1767609112182,10.71260484,135.47,135.44,0.66279126]
[1767609112698,9.51236564,135.47,135.44,0.66279126]
[1767609112879,2.13025627,135.46,135.44,0.66279126]
[1767609117602,9.51278201,135.46,135.44,0.66279126]
[1767609118002,2.13025627,135.45,135.42,0.70512109]
[1767609118180,10.18817048,135.46,135.42,0.70512109]
[1767609121586,0.10476388,135.45,135.41,21.04496448]
[1767609121787,0.10476388,135.45,135.41,13.66]
[1767609122103,0.67538847,135.44,135.41,14.35176199]
[1767609122309,9.5135845,135.45,135.42,0.69176199]
[1767609122884,9.6125845,135.45,135.42,0.69176199]
[1767609124106,2.13025627,135.43,135.42,0.69176199]
[1767609125599,7.38349577,135.44,135.42,0.69176199]
[1767609125790,2.13025627,135.43,135.42,0.69176199]
[1767609125991,2.13025627,135.43,135.41,13.66]
[1767609126212,2.13025627,135.42,135.41,13.66]
[1767609126387,2.13025627,135.42,135.41,0.2]
[1767609128087,2.13025627,135.43,135.41,0.89176199]
[1767609128288,8.09180912,135.44,135.41,0.89176199]
[1767609128609,2.13025627,135.43,135.41,0.89176199]
[1767609130320,2.13025627,135.43,135.41,0.2]
[1767609130615,2.83856962,135.43,135.41,0.2]
[1767609130813,0.70831335,135.45,135.42,0.69176199]
[1767609130995,2.83856962,135.45,135.42,0.69176199]
[1767609133100,0.70831335,135.45,135.42,0.69176199]
[1767609133299,0.70831335,135.45,135.41,8.27656603]
[1767609133917,0.70831335,135.45,135.42,0.69176199]
[1767609134619,2.83856962,135.46,135.43,0.69176199]
[1767609134831,2.83856962,135.49,135.44,0.69176199]
[1767609134997,2.83856962,135.49,135.46,0.69176199]
[1767609135199,0.70831335,135.48,135.45,14.15176199]
[1767609135399,2.83856962,135.49,135.46,0.69176199]
[1767609137398,0.70831335,135.49,135.46,0.69176199]
[1767609138416,0.70831335,135.49,135.45,20.84272001]
[1767609139232,0.70831335,135.49,135.45,21.534482]
[1767609142323,0.70831335,135.49,135.46,0.69176199]
[1767609144219,0.70831335,135.49,135.46,14.15176199]
[1767609145123,7.38041696,135.5,135.47,0.69176199]
[1767609145426,8.08873031,135.5,135.47,0.69176199]
[1767609147127,0.70831335,135.49,135.46,14.15176199]
[1767609149431,8.08873031,135.5,135.47,0.69176199]
[1767609150501,0.70831335,135.52,135.48,0.69176199]
[1767609151319,8.08755105,135.52,135.48,0.69176199]
[1767609152030,0.71584302,135.51,135.48,0.69176199]
[1767609152332,0.71584302,135.52,135.49,0.70438682]
[1767609153428,1e-08,135.52,135.49,23.67484289]
[1767609153750,7.37804545,135.54,135.49,23.67484289]
[1767609153917,7.37747512,135.55,135.5,0.70438682]
[1767609154117,9.50773139,135.55,135.5,0.70438682]
[1767609155737,10.16486094,135.55,135.5,0.70438682]
[1767609156342,10.16486094,135.55,135.51,0.70438682]
[1767609157431,8.03460467,135.55,135.51,0.70438682]
[1767609157610,10.16486094,135.55,135.51,0.70438682]
[1767609157811,0.099,135.54,135.51,0.70438682]
[1767609158512,0.65712955,135.55,135.51,0.70438682]
[1767609158818,2.78738582,135.56,135.52,0.70438682]
[1767609159826,10.16421197,135.56,135.52,0.70438682]
[1767609160543,9.50708242,135.56,135.52,0.70438682]
[1767609161028,9.50708242,135.56,135.53,0.70438682]
[1767609161230,10.15863067,135.56,135.53,0.70438682]
[1767609163940,9.60670752,135.57,135.53,0.70438682]
[1767609164124,7.47645125,135.57,135.52,20.83896472]
[1767609164319,9.60670752,135.57,135.53,0.70438682]
[1767609166133,2.13025627,135.56,135.53,0.70438682]
[1767609167031,7.47645125,135.57,135.53,0.70438682]
[1767609167032,0.1,135.57,135.54,0.70438682]
[1767609167336,9.60563625,135.59,135.55,0.70438682]
[1767609167532,2.16583757,135.58,135.55,14.13438682]
[1767609168530,2.13025627,135.57,135.53,31.81837504]
[1767609168735,9.54173988,135.58,135.53,18.37837504]
[1767609168939,9.54173988,135.58,135.53,31.81837504]
[1767609169439,9.54173988,135.58,135.54,0.70438682]
[1767609170627,0.0355813,135.58,135.55,0.70438682]
[1767609170943,9.64121459,135.59,135.55,0.70438682]
[1767609171638,0.0355813,135.58,135.55,0.70438682]
[1767609172150,2.26583757,135.59,135.55,0.70438682]
[1767609172323,2.23025627,135.59,135.55,0.70438682]
[1767609173044,9.60566792,135.59,135.55,0.70438682]
[1767609173748,2.13025627,135.58,135.55,0.70438682]
[1767609174628,3.32267655,135.58,135.55,0.70438682]
[1767609175760,7.47541165,135.59,135.55,0.70438682]
[1767609175926,0.1,135.61,135.59,0.71281375]
[1767609176130,3.42267655,135.61,135.59,0.68281375]
[1767609176531,3.52167655,135.61,135.57,13.44]
[1767609176827,3.42267655,135.61,135.57,13.44]
[1767609178247,3.42267655,135.61,135.58,0.71281375]
[1767609178631,0.1,135.61,135.58,0.71281375]
[1767609178832,3.42267655,135.61,135.58,0.71281375]
[1767609179448,10.96199467,135.61,135.58,0.71281375]
[1767609179755,3.32267655,135.59,135.57,0.71281375]
[1767609180248,3.32267655,135.6,135.57,0.71281375]
[1767609180547,10.69731411,135.6,135.57,0.71281375]
[1767609180854,3.32267655,135.59,135.57,0.71281375]
[1767609181040,7.37463756,135.6,135.56,13.44]
[1767609181041,7.53955304,135.6,135.56,14.10534784]
[1767609181252,3.32267655,135.58,135.56,0.66534784]
[1767609181426,0.09965916,135.59,135.56,0.66534784]
[1767609181628,3.32267655,135.57,135.56,0.66534784]
[1767609182654,7.37561199,135.59,135.56,0.66534784]
[1767609182836,3.32267655,135.57,135.56,0.66534784]
[1767609184631,3.32267655,135.58,135.56,0.66534784]
[1767609184955,7.37561199,135.59,135.56,0.66534784]
[1767609185154,3.32267655,135.58,135.56,0.66534784]
[1767609185559,10.69828854,135.59,135.56,0.66534784]
[1767609187367,3.32267655,135.58,135.56,0.66534784]
[1767609187659,3.32267655,135.57,135.56,0.66534784]
[1767609187835,3.26267656,135.57,135.56,0.66534784]
[1767609188038,10.69828854,135.59,135.56,0.66534784]
[1767609188367,3.32267655,135.57,135.56,0.66534784]
[1767609189165,3.32267655,135.58,135.56,0.66534784]
[1767609189583,7.37561199,135.59,135.56,0.66534784]
[1767609189863,3.32267655,135.6,135.56,0.66534784]
[1767609190947,3.32267655,135.6,135.57,0.66534784]
[1767609192064,7.57326125,135.61,135.57,0.66534784]
[1767609192253,3.32267655,135.6,135.57,0.66534784]
[1767609192656,7.57326125,135.61,135.57,0.66534784]
[1767609193143,3.32267655,135.6,135.57,0.66534784]
[1767609193345,3.32267655,135.6,135.56,7.37677521]
[1767609193346,3.32267655,135.58,135.55,0.66534784]
[1767609193549,7.53961215,135.6,135.55,0.66534784]
[1767609193751,3.32267655,135.58,135.55,0.66534784]
[1767609193966,3.32267655,135.59,135.55,14.10534784]
[1767609194276,3.32267655,135.59,135.56,0.66534784]
[1767609194444,3.32267655,135.58,135.56,0.66534784]
[1767609195267,7.47533844,135.59,135.56,0.66534784]
[1767609195442,3.32267655,135.58,135.56,0.66534784]
[1767609197579,3.32267655,135.59,135.56,0.66534784]
[1767609198774,3.32267655,135.6,135.57,0.66534784]
[1767609199460,3.42267655,135.61,135.58,0.66534784]
[1767609199660,0.1,135.61,135.58,0.66534784]
[1767609200473,0.1,135.64,135.61,0.66534784]
[1767609200680,3.42267655,135.64,135.61,0.63534784]
[1767609200861,3.32267655,135.63,135.61,0.63534784]
[1767609202679,3.32267655,135.63,135.61,0.60534784]
[1767609203287,0.1,135.64,135.61,0.60534784]
[1767609203484,3.52167655,135.64,135.6,7.37450712]
[1767609203794,3.42267655,135.64,135.6,20.81450712]
[1767609204577,3.42267655,135.64,135.6,0.66534784]
[1767609205280,0.1,135.64,135.6,0.66534784]
[1767609205459,3.42267655,135.64,135.6,0.66534784]
[1767609205658,3.42267655,135.64,135.61,0.66534784]
[1767609206657,0.1,135.64,135.61,0.66534784]
[1767609206852,7.47261336,135.64,135.61,0.66534784]
[1767609207058,10.6963455,135.62,135.58,0.66534784]
[1767609207280,11.0219268,135.62,135.58,0.66534784]
[1767609208384,10.6963455,135.62,135.58,0.66534784]
[1767609209686,3.32267655,135.63,135.59,0.66534784]
[1767609209981,3.32267655,135.62,135.59,0.66534784]
[1767609212266,3.32267655,135.62,135.58,0.72120917]
[1767609212267,3.32267655,135.61,135.58,0.72120917]
[1767609213597,3.32267655,135.6,135.58,0.72120917]
[1767609214964,3.42391971,135.59,135.54,0.72120917]
[1767609215289,3.32267655,135.58,135.54,0.72120917]
[1767609215661,3.32267655,135.58,135.55,0.72120917]
[1767609216179,3.32267655,135.57,135.55,0.72120917]
[1767609218181,3.32267655,135.59,135.56,0.72120917]
[1767609218487,3.32267655,135.6,135.56,0.72120917]
[1767609219890,3.32267655,135.6,135.57,0.72120917]
[1767609220088,61.2,135.62,135.57,0.72120917]
[1767609220271,61.2,135.62,135.59,0.72120917]
[1767609220470,0.83757191,135.64,135.61,0.72120917]
[1767609220773,0.1,135.64,135.61,0.72120917]
[1767609221285,1.1e-06,135.64,135.63,0.72120917]
[1767609222196,3.32267765,135.64,135.6,0.72120917]
[1767609222486,3.32267655,135.63,135.6,0.72120917]
[1767609223598,3.32267765,135.64,135.6,0.72120917]
[1767609223771,10.69522427,135.64,135.6,0.72120917]
[1767609224481,7.37254772,135.64,135.6,0.72120917]
[1767609224885,1.1e-06,135.64,135.62,0.72120917]
[1767609225276,1.1e-06,135.64,135.61,3.32267655]
[1767609225984,1.1e-06,135.64,135.62,0.72120917]
[1767609229576,0.32331658,135.64,135.6,0.72120917]
[1767609229895,1.1e-06,135.64,135.61,0.72120917]
[1767609230999,0.0990011,135.64,135.6,0.72120917]
[1767609231292,0.3255813,135.63,135.59,7.37483678]
[1767609231479,0.3255813,135.63,135.59,8.09604595]
[1767609231685,10.69513415,135.64,135.6,0.72120917]
[1767609232098,0.32331548,135.63,135.6,0.72120917]
[1767609232301,7.6980389,135.64,135.6,0.72120917]
[1767609232594,11.02071545,135.64,135.6,0.72120917]
[1767609234316,3.32267765,135.64,135.61,0.67716634]
[1767609234513,1.1e-06,135.64,135.61,0.67716634]
[1767609236198,3.32267765,135.64,135.61,0.64977659]
[1767609236504,2.12466576,135.64,135.61,0.64977659]
[1767609237204,9.62328395,135.64,135.59,7.3749249]
[1767609237718,0.32358664,135.63,135.59,7.3749249]
[1767609238214,0.32358664,135.63,135.59,8.05209124]
[1767609239205,0.32163168,135.61,135.56,14.11716634]
[1767609239382,0.32163168,135.61,135.56,21.49391255]
[1767609239383,0.13002597,135.6,135.56,21.49391255]
[1767609239586,2.47763571,135.61,135.57,0.67716634]
[1767609241897,2.47763571,135.61,135.57,8.05333755]
[1767609242091,0.35297105,135.61,135.58,0.6593586]
[1767609242287,7.72707486,135.61,135.58,0.6593586]
[1767609242992,2.47763571,135.61,135.58,0.6593586]
[1767609243686,0.35297105,135.61,135.58,0.6593586]
[1767609243892,9.85181511,135.61,135.58,0.6593586]
[1767609245086,2.12466466,135.6,135.56,0.6593586]
[1767609245486,9.85181511,135.61,135.56,0.6593586]
[1767609245790,71.05181511,135.61,135.56,0.6593586]
[1767609247111,71.78938702,135.61,135.56,0.6593586]
[1767609247608,2.12466466,135.6,135.56,0.6593586]
[1767609247908,7.37479038,135.6,135.56,0.6593586]
[1767609252110,2.47509599,135.59,135.55,0.6593586]
[1767609252287,2.47260682,135.57,135.53,8.03741858]
[1767609252488,2.47260682,135.57,135.53,0.6593586]
[1767609253299,15.91763571,135.59,135.54,0.6593586]
[1767609254507,7.37571913,135.58,135.54,0.6593586]
[1767609255011,7.47471913,135.58,135.54,0.6593586]
[1767609255417,9.59938379,135.58,135.54,0.6593586]
[1767609259117,0.35043133,135.57,135.52,2.12466466]
[1767609259317,0.1039786,135.54,135.51,0.6593586]
[1767609259611,2.47763571,135.55,135.51,0.6593586]
[1767609259791,0.35297105,135.55,135.51,0.6593586]
[1767609260091,2.22366466,135.54,135.5,0.6593586]
[1767609260813,0.35043133,135.53,135.49,0.6593586]
[1767609261118,0.35043133,135.53,135.49,8.03996891]
[1767609261709,0.29043134,135.53,135.5,0.6593586]
[1767609262011,9.50276555,135.54,135.5,0.6593586]
[1767609263218,7.37810089,135.54,135.5,0.6593586]
[1767609263398,9.50276555,135.54,135.5,0.6593586]
[1767609263718,9.79573661,135.54,135.5,0.6593586]
[1767609263896,7.67107195,135.54,135.5,0.6593586]
[1767609264505,7.6707494,135.55,135.51,0.6593586]
[1767609264720,9.79541406,135.55,135.51,0.6593586]
[1767609265222,2.415696,135.53,135.49,0.6593586]
[1767609265415,0.29103134,135.53,135.49,8.03988277]
[1767609265723,0.29103134,135.53,135.5,0.6593586]
[1767609268916,2.415696,135.53,135.5,0.6593586]
[1767609270223,9.6016543,135.54,135.5,0.6593586]
[1767609270906,10.33922621,135.54,135.5,0.6593586]
[1767609271098,2.12466466,135.53,135.5,0.6593586]
[1767609271294,2.415696,135.53,135.5,0.6593586]
[1767609273304,0.29103134,135.53,135.5,0.6593586]
[1767609273507,23.7786261,135.55,135.51,0.68905306]
[1767609274225,0.099,135.55,135.51,0.68905306]
[1767609274431,7.47645532,135.55,135.51,0.68905306]
[1767609274901,16.30223657,135.56,135.52,0.68905306]
[1767609274902,13.73297106,135.56,135.52,0.68905306]
[1767609275101,0.29297106,135.56,135.52,0.68905306]
[1767609275302,0.29297106,135.56,135.53,0.68905306]
[1767609277726,7.66978031,135.56,135.53,0.68905306]
[1767609278105,9.79444497,135.56,135.53,0.68905306]
[1767609280817,0.29297106,135.56,135.53,0.68905306]
[1767609281534,7.66982221,135.56,135.53,0.68905306]
[1767609281704,7.37685115,135.56,135.53,0.68905306]
[1767609283109,9.50151581,135.56,135.53,0.68905306]
[1767609283504,9.50151581,135.56,135.53,0.65905306]
[1767609283826,7.37685115,135.56,135.53,0.65905306]
[1767609284009,9.50151581,135.56,135.53,0.65905306]
[1767609286930,7.37685115,135.56,135.53,0.65905306]
[1767609287235,9.50151581,135.56,135.53,0.65905306]
[1767609287622,2.12466466,135.55,135.53,0.65905306]
[1767609288122,2.12466466,135.56,135.53,0.65905306]
[1767609289012,9.50153284,135.56,135.53,0.65905306]
[1767609292136,7.37686818,135.56,135.53,0.65905306]
[1767609293434,64.19093657,135.57,135.53,0.65905306]
[1767609293618,69.44278579,135.57,135.53,0.65905306]
[1767609294021,61.93757191,135.57,135.54,0.71132756]
[1767609294218,61.93757191,135.57,135.53,9.50304658]
[1767609294219,62.26054297,135.59,135.56,0.71132756]
[1767609294435,62.26054297,135.59,135.56,0.68132756]
[1767609295132,69.63603972,135.59,135.56,0.68132756]
[1767609297443,69.31306866,135.59,135.56,0.68132756]
[1767609297741,69.6635,135.59,135.56,0.68132756]
[1767609298041,83.1035,135.59,135.56,0.68132756]
[1767609298428,82.75306866,135.59,135.56,0.68132756]
[1767609298627,82.75306866,135.59,135.56,4.0030332]
[1767609298819,82.75306866,135.59,135.56,0.68132756]
[1767609299522,82.85206866,135.59,135.56,0.68132756]
[1767609300745,82.85206866,135.59,135.56,4.0030332]
[1767609301934,0.35043134,135.58,135.56,3.32170564]
[1767609302138,0.35043134,135.58,135.55,3.32170564]
[1767609302536,82.75306866,135.59,135.55,0.71504892]
[1767609302747,82.85206866,135.59,135.55,4.03675456]
[1767609302942,82.85206866,135.59,135.56,0.71504892]
[1767609303539,82.85206866,135.59,135.56,4.03675456]
[1767609304042,61.2,135.59,135.57,0.71504892]
[1767609304251,68.57521222,135.59,135.57,0.71504892]
[1767609304446,0.83908623,135.58,135.54,4.03675456]
[1767609304748,0.83908623,135.58,135.54,11.41461507]
[1767609305058,0.73757191,135.58,135.55,0.71504892]
[1767609310352,0.73757191,135.58,135.56,0.71504892]
[1767609310520,69.66575519,135.59,135.56,0.71504892]
[1767609311250,0.099,135.58,135.54,0.71504892]
[1767609311543,0.35043134,135.57,135.54,0.71504892]
[1767609312457,1.08800325,135.57,135.54,0.71504892]
[1767609313366,8.4645871,135.57,135.53,0.71504892]
[1767609313525,11.78629274,135.57,135.53,0.71504892]
[1767609313727,11.4358614,135.57,135.53,0.71504892]
[1767609316630,11.5348614,135.57,135.53,0.71504892]
[1767609319657,3.67213698,135.56,135.52,0.71504892]
[1767609320044,0.10151432,135.55,135.51,8.09428463]
[1767609320244,3.42070564,135.56,135.52,0.71504892]
[1767609320957,0.099,135.56,135.53,0.71504892]
[1767609321954,7.47587983,135.56,135.53,0.71504892]
[1767609323155,0.099,135.56,135.53,0.71504892]
[1767609329147,86.42871976,135.57,135.53,0.71504892]
[1767609332164,83.10701412,135.57,135.53,0.71504892]
[1767609333063,69.31404306,135.57,135.54,0.6803271]
[1767609335872,69.41304306,135.57,135.54,0.6803271]
[1767609336053,69.41304306,135.57,135.54,0.6503271]
[1767609338650,0.38013134,135.56,135.53,0.6803271]
[1767609339206,73.01871976,135.57,135.53,0.6803271]
[1767609341079,69.69701412,135.57,135.53,4.00203274]
[1767609341276,0.38297106,135.6,135.57,0.6803271]
[1767609341459,36.8622201,135.65,135.58,3.29170564]
[1767609341460,0.66391322,135.61,135.58,3.29170564]
[1767609343080,0.56647171,135.6,135.55,7.3768872]
[1767609343274,0.56647171,135.6,135.56,3.32170564]
[1767609344151,0.56647171,135.6,135.54,13.44]
[1767609344152,3.88817735,135.6,135.54,7.37772923]
[1767609344356,0.6629388,135.59,135.55,3.32170564]
[1767609344884,0.56743638,135.58,135.55,3.32170564]
[1767609345766,7.37526791,135.59,135.52,0.6803271]
[1767609345767,0.56838185,135.56,135.52,0.6803271]
[1767609345951,0.56838185,135.56,135.52,4.00203274]
[1767609346273,0.56838185,135.56,135.53,4.00203274]
[1767609346577,1e-08,135.56,135.53,4.00203274]
[1767609346776,13.44,135.58,135.53,4.00203274]
[1767609346969,20.81605948,135.58,135.53,0.6803271]
[1767609347167,24.13776512,135.58,135.53,0.6803271]
[1767609347879,10.69776512,135.58,135.53,0.6803271]
[1767609348680,11.26549014,135.58,135.53,0.6803271]
[1767609349391,72.46549014,135.58,135.53,0.6803271]
[1767609349673,69.1437845,135.58,135.53,0.6803271]
[1767609349880,0.099,135.57,135.53,0.6803271]
[1767609350882,0.56303776,135.56,135.53,0.6803271]
[1767609353083,11.26185696,135.56,135.52,0.66809041]
[1767609353889,7.94015132,135.56,135.52,0.66809041]
[1767609354468,0.55844379,135.52,135.49,7.38044744]
[1767609354780,10.70018768,135.53,135.49,0.66809041]
[1767609355080,7.37848204,135.53,135.49,0.66809041]
[1767609355278,10.70018768,135.53,135.49,0.66809041]
[1767609355579,3.32170564,135.52,135.49,0.66809041]
[1767609356163,7.37848204,135.53,135.49,0.66809041]
[1767609356366,3.32170564,135.52,135.49,0.66809041]
[1767609356964,7.88620707,135.53,135.49,0.66809041]
[1767609357293,11.20791271,135.53,135.49,0.66809041]
[1767609358465,10.01445941,135.53,135.49,0.66809041]
[1767609360995,23.45445941,135.53,135.49,0.66809041]
[1767609362571,0.099,135.52,135.49,0.66809041]
[1767609363093,2.22725234,135.52,135.49,0.66809041]
[1767609363274,22.94673438,135.53,135.49,0.66809041]
[1767609363471,23.45445941,135.53,135.49,0.66809041]
[1767609363889,22.94673438,135.53,135.49,0.66809041]
[1767609364393,23.04573438,135.53,135.49,0.66809041]
[1767609365278,0.50363777,135.52,135.49,0.66809041]
[1767609366294,22.94673438,135.53,135.49,0.66809041]
[1767609366893,9.50673438,135.53,135.49,0.66809041]
[1767609368791,2.12825234,135.52,135.49,0.66809041]
[1767609369895,9.50673438,135.53,135.49,0.66809041]
[1767609372799,70.70673438,135.53,135.49,0.66809041]
[1767609377486,87.02458253,135.53,135.48,0.70526888]
[1767609377693,2.12825234,135.49,135.46,0.2]
[1767609377995,2.12825234,135.48,135.46,0.2]
[1767609378192,2.12825234,135.49,135.46,0.2]
[1767609378390,2.12825234,135.49,135.46,0.90526888]
[1767609378584,15.58825234,135.5,135.46,0.90526888]
[1767609380007,13.46,135.5,135.46,3.03352122]
[1767609380311,20.84015312,135.5,135.46,3.03352122]
[1767609382504,20.84015312,135.5,135.46,0.90526888]
[1767609384006,20.84015312,135.5,135.47,2.12825234]
[1767609384807,20.84015312,135.5,135.46,0.90526888]
[1767609385111,20.84015312,135.5,135.47,2.12825234]
[1767609386312,20.84015312,135.5,135.48,2.12825234]
[1767609386313,13.46,135.5,135.48,2.12825234]
[1767609386803,68.57971516,135.51,135.48,2.12825234]
[1767609387004,61.2,135.5,135.47,0.70526888]
[1767609387207,61.2,135.5,135.46,7.58220628]
[1767609387208,61.2,135.5,135.48,0.70526888]
[1767609387407,13.46,135.51,135.48,0.70526888]
[1767609387613,115.56,135.55,135.48,0.70526888]
[1767609387810,115.56,135.55,135.47,7.38157526]
[1767609388007,115.56,135.55,135.48,0.70526888]
[1767609388392,25.82327619,135.54,135.49,0.70526888]
[1767609388911,25.82327619,135.54,135.52,2.12825234]
[1767609389111,25.82327619,135.54,135.48,0.70526888]
[1767609389501,27.95152853,135.54,135.48,2.83352122]
[1767609389700,27.95152853,135.54,135.49,0.70526888]
[1767609392413,27.95152853,135.54,135.48,2.84897357]
[1767609392809,27.95152853,135.54,135.48,0.72072123]
[1767609393008,27.95152853,135.54,135.48,2.84897357]
[1767609393208,2.12825234,135.52,135.46,0.2]
[1767609393588,39.28327619,135.54,135.46,0.2]
[1767609394092,9.50865908,135.5,135.46,0.2]
[1767609394691,7.37969137,135.51,135.47,0.72072123]
[1767609395292,9.50794371,135.51,135.46,0.2]
[1767609396317,2.12825234,135.51,135.46,0.2]
[1767609397206,25.82696676,135.52,135.46,0.2]
[1767609397519,2.12825234,135.51,135.46,0.2]
[1767609398895,7.3800738,135.5,135.46,0.92072123]
[1767609399212,7.3800738,135.5,135.46,0.2]
[1767609400316,9.50832614,135.5,135.46,0.2]
[1767609400721,2.12825234,135.49,135.46,0.2]
[1767609401016,7.38099598,135.49,135.46,0.2]
[1767609402195,9.50924832,135.49,135.46,0.2]
[1767609405214,9.50924832,135.49,135.46,0.92072123]
[1767609406320,7.38099598,135.49,135.46,0.92072123]
[1767609406530,9.50924832,135.49,135.46,0.92072123]
[1767609408825,9.50924832,135.49,135.46,0.2]
[1767609409119,2.12825234,135.48,135.46,0.2]
[1767609410124,7.38170812,135.47,135.46,0.2]
[1767609411004,9.50996046,135.47,135.46,1e-08]
[1767609411205,7.38170812,135.47,135.46,1e-08]
[1767609412229,27.96423077,135.47,135.42,0.2]
[1767609412412,2.12825234,135.43,135.42,0.2]
[1767609412618,25.83597843,135.47,135.42,0.2]
[1767609412815,2.12825234,135.43,135.42,1e-08]
[1767609413618,2.12825234,135.43,135.41,0.2]
[1767609414119,9.51226625,135.43,135.41,0.2]
[1767609414325,2.12825234,135.42,135.4,0.2]
[1767609414909,2.12825234,135.41,135.4,0.2]
[1767609415109,2.06825235,135.41,135.4,0.2]
[1767609415333,2.06825235,135.41,135.38,0.2]
[1767609415525,2.12825234,135.4,135.38,0.2]
[1767609415710,25.84373479,135.43,135.38,0.2]
[1767609415910,9.51398438,135.4,135.38,0.2]
[1767609416315,9.45398439,135.4,135.38,0.87380215]
[1767609416926,25.84360923,135.43,135.38,0.87380215]
[1767609417234,2.12825234,135.41,135.38,0.87380215]
[1767609418433,7.38552437,135.4,135.38,0.87380215]
[1767609420131,2.12825234,135.4,135.38,0.87380215]
[1767609420527,3.33174391,135.4,135.38,0.87380215]
[1767609421040,3.33174391,135.39,135.37,0.2]
[1767609421218,3.33174391,135.38,135.35,0.89851207]
[1767609421418,3.33174391,135.36,135.33,0.89851207]
[1767609421762,13.46,135.41,135.33,0.89851207]
[1767609421936,3.33174391,135.34,135.32,44.47641514]
[1767609422121,3.33174391,135.33,135.28,7.3920296]
[1767609422307,3.33174391,135.32,135.27,0.2]
[1767609422511,3.33174391,135.32,135.28,0.69851207]
[1767609423637,3.27174392,135.32,135.29,0.69851207]
[1767609423824,25.85888436,135.35,135.29,0.69851207]
[1767609424024,3.33174391,135.32,135.29,0.69851207]
[1767609424221,7.390983,135.3,135.27,13.66]
[1767609424427,7.33098301,135.3,135.27,0.2]
[1767609424627,10.66272692,135.3,135.27,0.2]
[1767609425838,3.33174391,135.29,135.27,0.2]
[1767609426334,10.72358738,135.29,135.27,0.2]
[1767609427042,10.72358738,135.29,135.27,0.89851207]
[1767609427223,7.39184347,135.29,135.27,0.89851207]
[1767609427633,10.72358738,135.29,135.27,0.89851207]
[1767609427837,7.39184347,135.29,135.27,0.89851207]
[1767609428145,10.72358738,135.29,135.27,0.89851207]
[1767609429046,0.67680333,135.27,135.23,0.69851207]
[1767609429291,0.6881873,135.23,135.18,6.48537245]
[1767609429418,3.33174391,135.19,135.18,6.48537245]
[1767609429615,3.33174391,135.19,135.1,3.33174391]
[1767609429616,4.01993121,135.19,135.12,3.33174391]
[1767609429822,3.33174391,135.16,135.13,13.46]
[1767609430248,0.6881873,135.21,135.13,13.46]
[1767609430416,0.6881873,135.2,135.13,13.46]
[1767609430624,2.60674391,135.16,135.13,13.46]
[1767609430921,4.01993121,135.18,135.13,7.40009919]
[1767609431128,4.01993121,135.18,135.14,0.04888859]
[1767609431333,1.69936389,135.18,135.14,0.04888859]
[1767609431528,7.39699681,135.19,135.14,0.04888859]
[1767609431736,3.33174391,135.19,135.14,0.04888859]
[1767609431916,3.33174391,135.19,135.17,0.69851207]
[1767609432247,3.33174391,135.22,135.17,0.69851207]
[1767609432445,29.81225009,135.23,135.17,0.69851207]
[1767609432446,29.81225009,135.23,135.18,0.69851207]
[1767609432643,29.81225009,135.23,135.19,0.69851207]
[1767609432644,22.41726399,135.23,135.19,0.69851207]
[1767609432943,7.39465676,135.24,135.19,0.69851207]
[1767609433349,8.08284406,135.24,135.19,0.69851207]
[1767609433544,4.01993121,135.22,135.16,4.03025598]
[1767609433866,4.01993121,135.19,135.15,14.17851207]
[1767609434163,3.33174391,135.19,135.15,14.17851207]
[1767609434467,0.6881873,135.2,135.16,0.69851207]
[1767609434641,3.33174391,135.21,135.17,0.69851207]
[1767609435152,4.01993121,135.22,135.18,0.69851207]
[1767609435863,4.01993121,135.19,135.14,0.69851207]
[1767609436163,3.33174391,135.17,135.14,14.17851207]
[1767609436337,4.01993121,135.18,135.14,14.17851207]
[1767609436739,4.01993121,135.18,135.14,0.69851207]
[1767609436944,3.33174391,135.19,135.15,0.69851207]
[1767609437339,3.33174391,135.18,135.15,0.69851207]
[1767609437761,3.33174391,135.19,135.15,0.69851207]
[1767609438271,3.33174391,135.23,135.18,0.69851207]